[Event "41st Amateur D7"]
[Site "ChessGUI4"]
[Date "2013.07.11"]
[Round "33.4"]
[White "Butcher 1.64 64-bit"]
[Black "ProChess 1.02AD"]
[Result "1-0"]
[BlackElo "2244"]
[ECO "B30"]
[EventDate "2013.??.??"]
[TimeControl "40/1500:40/1500:40/1500"]
[WhiteElo "2355"]

{ i5 Quad } 1.e4 { [%eval 0,1] [%emt 0:00:00] } 1...c5
{ [%eval 0,1] [%emt 0:00:00] } 2.Nf3 { [%eval 0,1] [%emt 0:00:00] } 2...Nc6
{ [%eval 0,1] [%emt 0:00:00] } 3.Nc3 { [%eval 0,1] [%emt 0:00:00] } 3...e5
{ [%eval 0,1] [%emt 0:00:00] } 4.Bc4 { [%eval 0,1] [%emt 0:00:00] } 4...Be7
{ [%eval 0,1] [%emt 0:00:00] } 5.d3 { [%eval 0,1] [%emt 0:00: 00] } 5...d6
{ [%eval 0,1] [%emt 0:00:00] } 6.O-O { [%eval 0,1] [%emt 0:00:00] } 6...Nf6
{ [%eval 0,1] [%emt 0:00:00] } 7.Ng5 { [%eval 0,1] [%emt 0:00:00] } 7...O-O
{ [%eval 0, 1] [%emt 0:00:00] } 8.f4 { [%eval 0,1] [%emt 0:00:00] } 8...Bg4
{ [%eval 0,1] [%emt 0: 00:00] } 9.Qe1 { [%eval -26,11] [%emt 0:01:04] }
9...h6 { [%eval 18,11] [%emt 0:00:44] (h6) } 10.Qg3
{ [%eval -17,10] [%emt 0:01:00] (Nf3) } 10...exf4
{ [%eval 46,12] [%emt 0:00:50] (exf4) } 11.Nxf7
{ [%eval -17,11] [%emt 0:00:52] (Nxf7) } 11...Rxf7
{ [%eval 53,12] [%emt 0:01:07] (Rxf7) } 12.Bxf7+
{ [%eval -10,11] [%emt 0:00:59] (Rxf4) } 12...Kxf7
{ [%eval 53,13] [%emt 0:01:03] (Kxf7) } 13.Bxf4
{ [%eval -13,12] [%emt 0:01: 05] (Bxf4) } 13...Be6
{ [%eval 51,12] [%emt 0:04:52] (Qd7) } 14.Nb5
{ [%eval 25,11] [%emt 0:00:53] (Be3) } 14...Nd4
{ [%eval 65,12] [%emt 0:00:49] (Qd7) } 15.Nxd4
{ [%eval 42,11] [%emt 0:00:54] (Nxd4) } 15...cxd4
{ [%eval 58,12] [%emt 0:00:31] (cxd4) } 16.e5
{ [%eval 0,12] [%emt 0:01:49] (Qf2) } 16...dxe5
{ [%eval 63,13] [%emt 0:01:16] (dxe5) } 17.Bxe5
{ [%eval 48,11] [%emt 0:00:58] (Bxe5) } 17...Qd5
{ [%eval 51,12] [%emt 0:06:51] (Rc8) } 18.Rae1
{ [%eval 69,11] [%emt 0:00:57] (Rae1) } 18...Rd8
{ [%eval 51,10] [%emt 0:00:15] (Rd8) } 19.Rf4
{ [%eval 12,10] [%emt 0:00:56] (Qf2) } 19...Bd6
{ [%eval 95,11] [%emt 0:00:22] (Bd6) } 20.Bxd6
{ [%eval 0,11] [%emt 0:00: 49] (Bxd6) } 20...Qxd6
{ [%eval 93,11] [%emt 0:00:26] (Qxd6) } 21.Qf2
{ [%eval 0,12] [%emt 0:00:47] (a4) } 21...Qb6
{ [%eval 91,10] [%emt 0:00:08] (Kg8) } 22.b3
{ [%eval 9, 11] [%emt 0:00:46] (b3) } 22...Ke7
{ [%eval 86,10] [%emt 0:00:25] (Kg6) } 23.Re5
{ [%eval 26,11] [%emt 0:00:45] (Rf5) } 23...Rd6
{ [%eval 90,9] [%emt 0:00:10] (Qc7) } 24.a4
{ [%eval -6,11] [%emt 0:00:41] (Qg3) } 24...Qc7
{ [%eval 90,10] [%emt 0:00:13] (Qc7) } 25.h3
{ [%eval 0,11] [%emt 0:00:45] (Qg3) } 25...Rd8
{ [%eval 93,10] [%emt 0:00:08] (Rd7) } 26.Re1
{ [%eval 0,12] [%emt 0:01:16] (Re1) } 26...Qc5
{ [%eval 90,10] [%emt 0: 00:09] (Qd6) } 27.c4
{ [%eval 39,11] [%emt 0:00:40] (Qg3) } 27...Rd6
{ [%eval 73,10] [%emt 0:00:14] (Qd6) } 28.Rf5
{ [%eval 63,12] [%emt 0:01:09] (Rf5) } 28...Qc6
{ [%eval 70,10] [%emt 0:00:06] (Qc6) } 29.Ra5
{ [%eval 63,11] [%emt 0:00:35] (b4) } 29...a6
{ [%eval 65,11] [%emt 0:00:08] (a6) } 30.b4
{ [%eval 46,11] [%emt 0:00:35] (b4) } 30...Qd7
{ [%eval 65,9] [%emt 0:00:09] (Kf7) } 31.Qe2
{ [%eval 79,11] [%emt 0: 00:34] (Rae5) } 31...Rc6
{ [%eval 68,10] [%emt 0:00:06] (Kf7) } 32.Re5
{ [%eval 111,12] [%emt 0:00:33] (Re5) } 32...b6
{ [%eval 63,12] [%emt 0:00:11] (b6) } 33.Qf2
{ [%eval 128,11] [%emt 0:00:26] (Qf2) } 33...Rd6
{ [%eval 61,11] [%emt 0:00:06] (Kf8) } 34.a5
{ [%eval 142,11] [%emt 0:00:25] (c5) } 34...Rc6
{ [%eval 0,12] [%emt 0:00:38] (bxa5) } 35.axb6
{ [%eval 163,11] [%emt 0:00:23] (axb6) } 35...Rxb6
{ [%eval -11,12] [%emt 0: 00:05] (Rxb6) } 36.c5
{ [%eval 165,11] [%emt 0:00:22] (c5) } 36...Rc6
{ [%eval -15,12] [%emt 0:00:04] (Rc6) } 37.Rf5
{ [%eval 164,11] [%emt 0:00:20] (Rf5) } 37...Rc8
{ [%eval -25,12] [%emt 0:00:18] (Kd8) } 38.Rf4
{ [%eval 190,11] [%emt 0:00:19] (Rf4) } 38...Rd8
{ [%eval -30,11] [%emt 0:00:09] (Rd8) } 39.Rc1
{ [%eval 191,10] [%emt 0:00:17] (Ra1) } 39...Qd5
{ [%eval -6,9] [%emt 0:00:04] (Qc6) } 40.Ra1
{ [%eval 190,10] [%emt 0:00:14] (Rc4) } 40...Qb3
{ [%eval -3,9] [%emt 0:00:03] (Qc6) } 41.Rxa6
{ [%eval 182,11] [%emt 0:00:49] (Rxa6) } 41...Qxb4
{ [%eval -28,11] [%emt 0:00:53] (Qxb4) } 42.Qe2
{ [%eval 191,12] [%emt 0:00:49] (Qe2) } 42...Qb3
{ [%eval -40,11] [%emt 0:00:47] (Qb3) } 43.Qe5
{ [%eval 222,11] [%emt 0:00:48] (Qe5) } 43...Kf7
{ [%eval -55,11] [%emt 0:01:40] (Kf7) } 44.Ra7+
{ [%eval 268,11] [%emt 0:00:47] (c6) } 44...Rd7
{ [%eval -61,12] [%emt 0:01:35] (Rd7) } 45.Qh5+
{ [%eval 241,11] [%emt 0:00:40] (Rxd7) } 45...Ke7
{ [%eval -90,13] [%emt 0:01:03] (Kg8) } 46.Qg6
{ [%eval 258, 12] [%emt 0:00:53] (Qg6) } 46...Rxa7
{ [%eval -132,12] [%emt 0:01:19] (Ne8) } 47.Qxg7+
{ [%eval 449,13] [%emt 0:00:47] (Qxg7) } 47...Ke8
{ [%eval -256,13] [%emt 0:01:20] (Ke8) } 48.Qxa7
{ [%eval 454,13] [%emt 0:00:50] (Qxa7) } 48...Qxd3
{ [%eval -260,13] [%emt 0:00:58] (Qxd3) } 49.Rxf6
{ [%eval 401,14] [%emt 0:00:51] (Rxf6) } 49...Qe3+
{ [%eval -270,14] [%emt 0:00:37] (Qe3) } 50.Rf2
{ [%eval 446,13] [%emt 0:00:50] (Rf2) } 50...d3
{ [%eval -330,13] [%emt 0:01:02] (d3) } 51.Qb8+
{ [%eval 512,13] [%emt 0:00:50] (Qb8) } 51...Kd7
{ [%eval -329,14] [%emt 0:00:24] (Kd7) } 52.Qd6+
{ [%eval 510,13] [%emt 0:00:49] (Qd6) } 52...Kc8
{ [%eval -320,14] [%emt 0:00:31] (Kc8) } 53.g4
{ [%eval 496,13] [%emt 0:00:48] (g4) } 53...Bd7
{ [%eval -315,13] [%emt 0:00:28] (Bd7) } 54.Kg2
{ [%eval 476,13] [%emt 0:00:38] (Kg2) } 54...Qe4+
{ [%eval -316,14] [%emt 0:00: 44] (Qe4) } 55.Kh2
{ [%eval 476,14] [%emt 0:00:41] (Kh2) } 55...Bc6
{ [%eval -316,13] [%emt 0:00:31] (Bc6) } 56.Rf8+
{ [%eval 467,13] [%emt 0:00:40] (Rf8) } 56...Be8
{ [%eval -356,14] [%emt 0:00:25] (Be8) } 57.Qa6+
{ [%eval 639,13] [%emt 0:00:40] (Qa6) } 57...Kc7
{ [%eval -349,14] [%emt 0:01:38] (Kc7) } 58.Qb6+
{ [%eval 540,12] [%emt 0:00:36] (Qb6) } 58...Kd7
{ [%eval -587,15] [%emt 0:03:42] (Kc8) } 59.Qb5+
{ [%eval 722,13] [%emt 0:00:39] (Qb5) } 59...Qc6
{ [%eval -628,15] [%emt 0:00:13] (Qc6) } 60.Qxd3+
{ [%eval 720,13] [%emt 0:00:39] (Qxc6) } 60...Ke7
{ [%eval -498,12] [%emt 0: 00:19] (Ke7) } 61.Rg8
{ [%eval 774,12] [%emt 0:00:38] } 61...Qc7+
{ [%eval -481,11] [%emt 0:00:10] (Qe6) } 1-0

[Event "41st Amateur D7"]
[Site "ChessGUI4"]
[Date "2013.07.11"]
[Round "33.5"]
[White "Gibbon 2.57a 64-bit"]
[Black "Waxman 2011"]
[Result "0-1"]
[BlackElo "2256"]
[ECO "D45"]
[EventDate "2013.??.??"]
[TimeControl "40/1500:40/1500:40/1500"]
[WhiteElo "2251"]

{ i5 Quad } 1.c4 { [%eval 0,1] [%emt 0:00:00] } 1...c6
{ [%eval 0,1] [%emt 0:00:00] } 2.Nf3 { [%eval 0,1] [%emt 0:00:00] } 2...d5
{ [%eval 0,1] [%emt 0:00:00] } 3.e3 { [%eval 0,1] [%emt 0:00:00] } 3...Nf6
{ [%eval 0,1] [%emt 0:00:00] } 4.Nc3 { [%eval 0, 1] [%emt 0:00:00] } 4...e6
{ [%eval 0,1] [%emt 0:00:00] } 5.d4 { [%eval 0,1] [%emt 0: 00:00] } 5...Nbd7
{ [%eval 0,1] [%emt 0:00:00] } 6.Qc2 { [%eval 0,1] [%emt 0:00:00] } 6...Bd6
{ [%eval 0,1] [%emt 0:00:00] } 7.Bd2 { [%eval 0,1] [%emt 0:00:00] } 7...O-O
{ [%eval 0,1] [%emt 0:00:00] } 8.h3 { [%eval 0,1] [%emt 0:00:00] } 8...c5
{ [%eval 0,1] [%emt 0:00:00] } 9.cxd5 { [%eval 44,13] [%emt 0:01:49] }
9...exd5 { [%eval -20,12] [%emt 0:00:41] (exd5) } 10.Nb5
{ [%eval 34,12] [%emt 0:00:29] (Nb5) } 10...Be7
{ [%eval -9,12] [%emt 0:00:38] (Be7) } 11.dxc5
{ [%eval 39,13] [%emt 0:00:41] (Rc1) } 11...Nxc5
{ [%eval 16,12] [%emt 0:01:00] (Nxc5) } 12.Be2
{ [%eval 32,13] [%emt 0:00:41] (Be2) } 12...Bd7
{ [%eval 20,12] [%emt 0:00:42] (Bd7) } 13.O-O
{ [%eval 36,13] [%emt 0:01:04] (O-O) } 13...Nce4
{ [%eval 12,12] [%emt 0:01:01] (Qb6) } 14.Rfc1
{ [%eval 29,12] [%emt 0:00:36] (Rac1) } 14...Rc8
{ [%eval 26,12] [%emt 0:00:45] (Rc8) } 15.Qb3
{ [%eval 33,12] [%emt 0:00:25] (Qb3) } 15...Qb6
{ [%eval 29,12] [%emt 0:00:50] (Qb6) } 16.Nbd4
{ [%eval 32,13] [%emt 0:01:15] (Nbd4) } 16...Qxb3
{ [%eval 27,12] [%emt 0:00:50] (Nxd2) } 17.Nxb3
{ [%eval 22,12] [%emt 0:00:05] (Nxb3) } 17...Rfe8
{ [%eval 18,12] [%emt 0:00:36] (Nxd2) } 18.Be1
{ [%eval 39,12] [%emt 0:00:18] (Nfd4) } 18...Bd6
{ [%eval 16,12] [%emt 0:00:36] (Nc5) } 19.Nbd4
{ [%eval 37,13] [%emt 0:00:52] (Nfd4) } 19...Kh8
{ [%eval 17,12] [%emt 0:00:49] (a6) } 20.Ba5
{ [%eval 35,13] [%emt 0:01:10] (Bd3) } 20...Bc5
{ [%eval 17,12] [%emt 0:00:42] (b6) } 21.a3
{ [%eval 39,13] [%emt 0:00:24] (Nb3) } 21...b6
{ [%eval 10,12] [%emt 0:00:46] (Nd6) } 22.Bb4
{ [%eval 55,13] [%emt 0:00:19] (Be1) } 22...a5
{ [%eval 13,13] [%emt 0:00:45] (Bxd4) } 23.Be1
{ [%eval 62,13] [%emt 0:00:26] (Be1) } 23...Bd6
{ [%eval 7,12] [%emt 0:00:38] (Nd6) } 24.Nb5
{ [%eval 75,12] [%emt 0:00:17] (Nb5) } 24...Bb8
{ [%eval 5,12] [%emt 0: 00:36] (Bb8) } 25.b4
{ [%eval 76,13] [%emt 0:00:21] (Nbd4) } 25...a4
{ [%eval 0,12] [%emt 0:00:38] (axb4) } 26.Bd3
{ [%eval 85,11] [%emt 0:00:13] (Nc3) } 26...Kg8
{ [%eval -8,12] [%emt 0:00:44] (h6) } 27.Nbd4
{ [%eval 91,12] [%emt 0:00:19] (Nc3) } 27...Bd6
{ [%eval -2,14] [%emt 0:01:08] (Bd6) } 28.Rd1
{ [%eval 91,11] [%emt 0:00: 24] (Ba6) } 28...Kf8
{ [%eval -8,12] [%emt 0:00:44] (Bb8) } 29.Rac1
{ [%eval 97,12] [%emt 0:00:15] (Nb5) } 29...Bb8
{ [%eval -12,13] [%emt 0:00:57] (h6) } 30.g4
{ [%eval 100,13] [%emt 0:00:36] (Ne2) } 30...h6
{ [%eval 2,12] [%emt 0:00:36] (h5) } 31.Ba6
{ [%eval 90,13] [%emt 0:00:22] (Bb5) } 31...Rxc1
{ [%eval 0,14] [%emt 0:00:47] (Rxc1) } 32.Rxc1
{ [%eval 106,13] [%emt 0:00:10] (Rxc1) } 32...Kg8
{ [%eval -8,13] [%emt 0:00: 54] (Nd6) } 33.Kg2
{ [%eval 108,12] [%emt 0:00:07] (Bb5) } 33...Nd6
{ [%eval -24,12] [%emt 0:00:38] (Bd6) } 34.Nc6
{ [%eval 107,13] [%emt 0:00:08] (Nc6) } 34...Bc7
{ [%eval -38,13] [%emt 0:00:47] (Bc7) } 35.Bc3
{ [%eval 106,13] [%emt 0:00:12] (Nce5) } 35...Nfe4
{ [%eval -49,12] [%emt 0:00:56] (Bxc6) } 36.Be5
{ [%eval 126,13] [%emt 0:00:22] (Bd4) } 36...Bd8
{ [%eval -54,12] [%emt 0:00:39] (Bd8) } 37.Nxd8
{ [%eval 135,13] [%emt 0:00:10] (Nxd8) } 37...Rxd8
{ [%eval -78,12] [%emt 0:00:10] (Rxd8) } 38.Nd4
{ [%eval 134,14] [%emt 0:00:26] (Nd4) } 38...Ra8
{ [%eval -86,12] [%emt 0:00:25] (Re8) } 39.Bd3
{ [%eval 110,13] [%emt 0:00:08] (Rc7) } 39...Rc8
{ [%eval -78,13] [%emt 0:00:24] (Rc8) } 40.Rxc8+
{ [%eval 104,13] [%emt 0:00:11] (Rxc8) } 40...Nxc8
{ [%eval -91,15] [%emt 0:00:37] (Nxc8) } 41.Bb5
{ [%eval 99,14] [%emt 0:00:48] (Bb5) } 41...Bxb5
{ [%eval -63,13] [%emt 0:00:08] (Bxb5) } 42.Nxb5
{ [%eval 104,16] [%emt 0:00:15] (Nxb5) } 42...f6
{ [%eval -80,13] [%emt 0:00:31] (f6) } 43.Bc7
{ [%eval 81,18] [%emt 0:01:23] (Bd4) } 43...Kf7
{ [%eval -79,13] [%emt 0:00:21] (Kf7) } 44.Kf3
{ [%eval 79,17] [%emt 0:00:29] (h4) } 44...Ke6
{ [%eval -31,13] [%emt 0: 00:24] (Ke6) } 45.Ke2
{ [%eval 70,18] [%emt 0:01:09] (Bf4) } 45...Kd7
{ [%eval -26,14] [%emt 0:00:23] (Kd7) } 46.Bh2
{ [%eval 60,18] [%emt 0:02:13] (f3) } 46...Ncd6
{ [%eval -13,15] [%emt 0:00:33] (Kc6) } 47.Bxd6
{ [%eval 69,19] [%emt 0:00:46] (Bxd6) } 47...Nxd6
{ [%eval -10,15] [%emt 0:00:14] (Nxd6) } 48.Nxd6
{ [%eval 74,21] [%emt 0:00:41] (Nxd6) } 48...Kxd6
{ [%eval -17,16] [%emt 0:00:12] (Kxd6) } 49.Kd3
{ [%eval 69,24] [%emt 0:00:51] (Kd3) } 49...Ke5
{ [%eval -16,18] [%emt 0:00:30] (Ke5) } 50.f3
{ [%eval 72,24] [%emt 0:00:59] (h4) } 50...g6
{ [%eval -14,20] [%emt 0:00:39] (Kd6) } 51.h4
{ [%eval 62,23] [%emt 0:00:39] (f4) } 51...f5
{ [%eval -10,20] [%emt 0: 00:25] (f5) } 52.f4+
{ [%eval 61,24] [%emt 0:00:21] (f4) } 52...Ke6
{ [%eval 0,20] [%emt 0:00:08] (Ke6) } 53.g5
{ [%eval 42,25] [%emt 0:00:14] (g5) } 53...hxg5
{ [%eval 0,22] [%emt 0:00:40] (hxg5) } 54.fxg5
{ [%eval 29,25] [%emt 0:00:21] (fxg5) } 54...b5
{ [%eval 0,22] [%emt 0:00:33] (Ke5) } 55.Kd4
{ [%eval 0,26] [%emt 0:00:11] (Ke2) } 55...Kd6
{ [%eval 0,22] [%emt 0:00:25] (Kd6) } 56.Kd3
{ [%eval 0,28] [%emt 0:00:25] (Kd3) } 56...Ke5
{ [%eval 0,22] [%emt 0:00:46] (Ke7) } 57.Kc3
{ [%eval 0,25] [%emt 0: 00:14] (Kc3) } 57...Ke6
{ [%eval 0,22] [%emt 0:00:34] (Ke6) } 58.Kd3 { [%eval 0,27] [%emt 0:00:25] }
58...Ke5 { [%eval 0,24] [%emt 0:01:33] (Ke5) } 59.Ke2
{ [%eval 0,28] [%emt 0:00:39] } 59...f4 { [%eval 1,21] [%emt 0:00:27] (Ke6) }
60.exf4+ { [%eval 0,26] [%emt 0:00:16] (exf4) } 60...Kxf4
{ [%eval 1,20] [%emt 0:00:11] (Kxf4) } 61.Kd3
{ [%eval 0,29] [%emt 0:00:17] (h5) } 61...Ke5
{ [%eval 1,22] [%emt 0:00:33] (Ke5) } 62.Kd2
{ [%eval 0,29] [%emt 0:00:52] (Ke3) } 62...d4
{ [%eval 1,22] [%emt 0:00:26] (d4) } 63.Kd3
{ [%eval 0,29] [%emt 0:00:17] (Kd3) } 63...Kd5
{ [%eval 1,23] [%emt 0:00:29] (Kd5) } 64.Kc2
{ [%eval 0,28] [%emt 0:00:20] (Kc2) } 64...Ke6
{ [%eval 1,23] [%emt 0: 00:54] (Ke6) } 65.Kd3
{ [%eval 0,26] [%emt 0:00:26] (Kd3) } 65...Ke5
{ [%eval 0,23] [%emt 0:00:31] (Ke5) } 66.Ke2
{ [%eval 0,25] [%emt 0:01:13] (Kc2) } 66...Ke6
{ [%eval 0,22] [%emt 0:01:35] (Ke6) } 67.Ke1 { [%eval 0,29] [%emt 0:00:20] }
67...Kd5 { [%eval 0,24] [%emt 0:00:48] (Kf7) } 68.Kd2
{ [%eval 0,29] [%emt 0:00:30] (Kf2) } 68...Ke5
{ [%eval 0,24] [%emt 0:01:01] (Kd6) } 69.Kd3 { [%eval 0,29] [%emt 0:00:15] }
69...Kd5 { [%eval 0,26] [%emt 0:01:31] (Kd5) } 70.h5
{ [%eval 49,4] [%emt 0:00:33] } 70...gxh5
{ [%eval 255,21] [%emt 0:00:18] (gxh5) } 71.g6
{ [%eval -822,25] [%emt 0:00:05] (g6) } 71...Ke6
{ [%eval 481,21] [%emt 0:00:46] (Ke6) } 72.Kxd4
{ [%eval -850,27] [%emt 0:00:26] (Kxd4) } 72...Kf6
{ [%eval 487,20] [%emt 0:00:48] (Kf6) } 73.Kd5
{ [%eval -1007,26] [%emt 0:00:19] (g7) } 73...Kxg6
{ [%eval 710,21] [%emt 0:00:34] (Kxg6) } 74.Ke4
{ [%eval -1329,29] [%emt 0:00:26] (Ke4) } 74...Kf6
{ [%eval 1498,22] [%emt 0:01:07] (Kf6) } 0-1

[Event "41st Amateur D7"]
[Site "ChessGUI4"]
[Date "2013.07.11"]
[Round "34.1"]
[White "Carballo 0.8"]
[Black "Shallow 1.0 64-bit"]
[Result "1-0"]
[BlackElo "2200"]
[ECO "E12"]
[EventDate "2013.??.??"]
[TimeControl "40/1500:40/1500:40/1500"]
[WhiteElo "2273"]

{ i5 Quad } 1.d4 { [%eval 0,1] [%emt 0:00:00] } 1...Nf6
{ [%eval 0,1] [%emt 0:00:00] } 2.Nf3 { [%eval 0,1] [%emt 0:00:00] } 2...e6
{ [%eval 0,1] [%emt 0:00:00] } 3.c4 { [%eval 0,1] [%emt 0:00:00] } 3...b6
{ [%eval 0,1] [%emt 0:00:00] } 4.a3 { [%eval 0,1] [%emt 0:00:00] } 4...Ba6
{ [%eval 0,1] [%emt 0:00:00] } 5.Nbd2 { [%eval 0,1] [%emt 0: 00:00] } 5...d5
{ [%eval 0,1] [%emt 0:00:00] } 6.e3 { [%eval 0,1] [%emt 0:00:00] } 6...c6
{ [%eval 0,1] [%emt 0:00:00] } 7.Be2 { [%eval 0,1] [%emt 0:00:00] } 7...Be7
{ [%eval 0, 1] [%emt 0:00:00] } 8.O-O { [%eval 0,1] [%emt 0:00:00] } 8...O-O
{ [%eval 0,1] [%emt 0:00:00] } 9.b4 { [%eval 33,13] [%emt 0:00:37] } 9...c5
{ [%eval -8,14] [%emt 0:00:42] (Nbd7) } 10.cxd5
{ [%eval 39,11] [%emt 0:00:36] (bxc5) } 10...Bxe2
{ [%eval -2,15] [%emt 0:00:42] (exd5) } 11.Qxe2
{ [%eval 25,14] [%emt 0:00:35] (Qxe2) } 11...Qxd5
{ [%eval -1,15] [%emt 0:00:42] (exd5) } 12.e4
{ [%eval 18,13] [%emt 0:00:34] (e4) } 12...Qh5
{ [%eval 2,15] [%emt 0:00:42] (Qh5) } 13.dxc5
{ [%eval 26,13] [%emt 0:00:33] (bxc5) } 13...bxc5
{ [%eval 1,14] [%emt 0:00:42] (bxc5) } 14.b5
{ [%eval 24,13] [%emt 0:00:32] (bxc5) } 14...Ng4
{ [%eval 13,14] [%emt 0:00:42] (Nbd7) } 15.h3
{ [%eval 36, 14] [%emt 0:00:32] (h3) } 15...Ne5
{ [%eval 9,14] [%emt 0:00:42] (Ne5) } 16.Bb2
{ [%eval 39,14] [%emt 0:00:31] (Bb2) } 16...Nbd7
{ [%eval 8,14] [%emt 0:00:42] (Nbd7) } 17.Rac1
{ [%eval 48,13] [%emt 0:00:30] (Rfe1) } 17...Rac8
{ [%eval 11,13] [%emt 0:00: 42] (Rad8) } 18.g4
{ [%eval 62,14] [%emt 0:00:29] (a4) } 18...Nxf3+
{ [%eval 40,13] [%emt 0:00:42] (Nxf3) } 19.Qxf3
{ [%eval 60,14] [%emt 0:00:29] (Qxf3) } 19...Qh6
{ [%eval 33,14] [%emt 0:00:42] (Qg5) } 20.Nc4
{ [%eval 80,13] [%emt 0:00:28] (Nc4) } 20...Nb6
{ [%eval 31,14] [%emt 0:00:42] (Rfd8) } 21.Na5
{ [%eval 63,12] [%emt 0:00: 27] (Na5) } 21...Bg5
{ [%eval 30,13] [%emt 0:00:42] (c4) } 22.Rc2
{ [%eval 79,13] [%emt 0:00:26] (Rc2) } 22...Nd7
{ [%eval 12,13] [%emt 0:00:42] (c4) } 23.Rd1
{ [%eval 140,12] [%emt 0:00:26] (Nc6) } 23...Rc7
{ [%eval 1,13] [%emt 0:00:42] (Nb6) } 24.Nc6
{ [%eval 147,13] [%emt 0:00:25] (Nc6) } 24...Bf4
{ [%eval 0,13] [%emt 0:00:42] (Bf4) } 25.Bc3
{ [%eval 156,12] [%emt 0:00:24] (Nb4) } 25...Rb7
{ [%eval -20,12] [%emt 0:00: 42] (Re8) } 26.Na5
{ [%eval 153,12] [%emt 0:00:24] (Bd2) } 26...Rc7
{ [%eval -20,13] [%emt 0:00:42] (Rc7) } 27.Nc6
{ [%eval 135,13] [%emt 0:00:23] (Nc6) } 27...Rb7
{ [%eval -55,13] [%emt 0:01:08] (Nb6) } 28.Bd2
{ [%eval 153,12] [%emt 0:00:23] (Bd2) } 28...e5
{ [%eval -63,13] [%emt 0:00:41] (Bg5) } 29.Ne7+
{ [%eval 191,14] [%emt 0:00:22] (Ne7) } 29...Kh8
{ [%eval 9,1] [%emt 0:00:00] (Kh8) } 30.Nf5 { [%eval 183,14] [%emt 0:00:21] }
30...Qe6 { [%eval -82,14] [%emt 0:00:44] (Qe6) } 31.Bxf4
{ [%eval 190, 14] [%emt 0:00:21] (Bxf4) } 31...exf4
{ [%eval -82,14] [%emt 0:00:44] (exf4) } 32.Nd6
{ [%eval 176,13] [%emt 0:00:20] (Nd6) } 32...Rc7
{ [%eval -84,12] [%emt 0:00:58] (Ne5) } 33.Qxf4
{ [%eval 225,13] [%emt 0:00:20] (Qxf4) } 33...Nb6
{ [%eval -92,13] [%emt 0:00: 42] (Nb6) } 34.h4
{ [%eval 223,11] [%emt 0:00:19] (Rdc1) } 34...c4
{ [%eval -66,12] [%emt 0:00:42] (Kg8) } 35.Nf5
{ [%eval 230,12] [%emt 0:00:19] (Nf5) } 35...Qc8
{ [%eval -73,13] [%emt 0:00:42] (Rd7) } 36.Rcd2
{ [%eval 236,10] [%emt 0:00:18] (h5) } 36...c3
{ [%eval -62,12] [%emt 0:00:42] (f6) } 37.Rc2
{ [%eval 236,12] [%emt 0: 00:18] (Rc2) } 37...g6
{ [%eval -76,12] [%emt 0:00:42] (f6) } 38.Nd6
{ [%eval 203,12] [%emt 0:00:17] (Ne3) } 38...Qe6
{ [%eval -70,13] [%emt 0:00:42] (Qe6) } 39.f3
{ [%eval 199,11] [%emt 0:00:17] (Nf5) } 39...Kg8
{ [%eval -51,12] [%emt 0:00:42] (Kg8) } 40.Ne8
{ [%eval 162,11] [%emt 0:00:17] (Ne8) } 40...Rc5
{ [%eval -73,12] [%emt 0:00: 42] (Rc8) } 41.Nf6+
{ [%eval 161,14] [%emt 0:00:54] (Nf6) } 41...Kg7
{ [%eval -76,13] [%emt 0:00:37] (Kg7) } 42.g5
{ [%eval 157,15] [%emt 0:00:52] (g5) } 42...Rfc8
{ [%eval -78,12] [%emt 0:00:37] (Rfc8) } 43.Ng4
{ [%eval 154,13] [%emt 0:00:51] (Ng4) } 43...Kf8
{ [%eval -81,12] [%emt 0:00:37] (Kf8) } 44.Qe3
{ [%eval 160,14] [%emt 0:00:50] (Qf6) } 44...Ke7
{ [%eval -76,11] [%emt 0:00:37] (Qc4) } 45.Qd4
{ [%eval 197, 13] [%emt 0:00:48] (Qd4) } 45...Rc4
{ [%eval -86,12] [%emt 0:00:37] (Rc4) } 46.Qd3
{ [%eval 187,14] [%emt 0:00:47] (Qf6) } 46...R4c5
{ [%eval -81,11] [%emt 0:00:37] (Kf8) } 47.Qd4
{ [%eval 207,14] [%emt 0:00:46] (Qd4) } 47...Rc4
{ [%eval -82,13] [%emt 0:00: 37] (Rc4) } 48.Qd3
{ [%eval 201,14] [%emt 0:00:45] (Qf6) } 48...Kf8
{ [%eval -96,12] [%emt 0:00:37] (Kf8) } 49.Kg2
{ [%eval 185,13] [%emt 0:00:44] (Kg2) } 49...Ke8
{ [%eval -115,12] [%emt 0:01:19] (Kg8) } 50.Nf6+
{ [%eval 214,13] [%emt 0:00:43] (Rdc1) } 50...Ke7
{ [%eval -132,12] [%emt 0:00:36] (Kf8) } 51.f4
{ [%eval 215,12] [%emt 0:00:42] (Nxh7) } 51...h6
{ [%eval -122,11] [%emt 0:00:36] (h5) } 52.Qe3
{ [%eval 235,12] [%emt 0:00:40] (e5) } 52...R4c5
{ [%eval -93,11] [%emt 0:00:36] (R4c5) } 53.a4
{ [%eval 242,13] [%emt 0:00:39] (Kg3) } 53...hxg5
{ [%eval -133,10] [%emt 0:00: 36] (hxg5) } 54.hxg5
{ [%eval 215,14] [%emt 0:00:38] (hxg5) } 54...Qc4
{ [%eval -124, 10] [%emt 0:00:36] (Qc4) } 55.a5
{ [%eval 217,13] [%emt 0:00:38] (a5) } 55...Rd8
{ [%eval -351,11] [%emt 0:00:36] (Qb3) } 56.Rxd8
{ [%eval 458,14] [%emt 0:00:37] (Rxd8) } 56...Kxd8
{ [%eval -367,12] [%emt 0:00:36] (Kxd8) } 57.axb6
{ [%eval 477,16] [%emt 0:00:36] (axb6) } 57...axb6
{ [%eval -473,12] [%emt 0:00:36] (axb6) } 58.Kg3
{ [%eval 510,15] [%emt 0:00:35] (Qh3) } 58...Qxb5
{ [%eval -465,12] [%emt 0:00:36] (Qf1) } 59.Rxc3
{ [%eval 550,15] [%emt 0:00:34] (Rxc3) } 59...Rxc3
{ [%eval -515,12] [%emt 0:01:18] (Qc6) } 60.Qxc3
{ [%eval 609,18] [%emt 0:00:33] (Qxc3) } 60...Qc5
{ [%eval -542,13] [%emt 0:00:34] (Qc5) } 61.Qd3+
{ [%eval 617,16] [%emt 0:00:32] (Qd2) } 61...Kc8
{ [%eval -623,12] [%emt 0:00:34] (Kc7) } 62.Qd7+
{ [%eval 614,16] [%emt 0:00: 31] (Qd7) } 62...Kb8
{ [%eval -494,1] [%emt 0:00:00] (Kb8) } 1-0